bitfinex/quotes_ETHUSD_20260307
["timestamp","ask_amount","ask_price","bid_price","bid_amount"]
[1772853424732,3.00644933,1990.7,1990.4,0.001]
[1772853424932,0.47622167,1990.8,1990.4,0.001]
[1772853425246,3.00658526,1990.7,1990.4,0.001]
[1772853425558,0.47622167,1990.8,1990.4,0.001]
[1772853425759,3.48519477,1990.7,1990.4,0.001]
[1772853425935,3.0089731,1990.6,1990.4,0.001]
[1772853426132,0.47622167,1990.7,1990.4,0.001]
[1772853426337,3.00893758,1990.6,1990.4,0.001]
[1772853426524,0.47622167,1990.7,1990.4,0.001]
[1772853426833,3.00893758,1990.6,1990.2,1.25715516]
[1772853427033,0.47622167,1990.7,1990.2,1.25715516]
[1772853427230,3.00893758,1990.6,1990.2,1.25715516]
[1772853427434,0.47622167,1990.7,1990.2,1.25715516]
[1772853427750,3.00904755,1990.6,1990.2,1.25715516]
[1772853427960,3.00904755,1990.5,1990.2,0.001]
[1772853428131,0.47622167,1990.6,1990.2,0.001]
[1772853428328,3.48527324,1990.5,1990.2,0.001]
[1772853428655,3.59087571,1991.0,1990.2,0.001]
[1772853428656,0.47622167,1990.7,1990.2,0.001]
[1772853428852,3.0090818,1990.6,1990.2,0.001]
[1772853429150,3.0090818,1990.5,1990.2,0.001]
[1772853429354,0.47622167,1990.7,1990.2,0.001]
[1772853429663,0.47622167,1990.5,1990.2,0.001]
[1772853429843,3.00901692,1990.4,1990.2,0.001]
[1772853430156,0.47622167,1990.8,1990.2,0.001]
[1772853430361,3.00896965,1990.7,1990.2,0.001]
[1772853430562,3.00896965,1990.6,1990.2,0.001]
[1772853430751,3.00896965,1990.5,1990.2,0.001]
[1772853430950,0.47622167,1990.9,1990.2,0.001]
[1772853431154,3.48490414,1990.8,1990.2,0.001]
[1772853431363,3.00868247,1990.7,1990.2,0.001]
[1772853431543,3.00868247,1990.6,1990.2,0.001]
[1772853431736,3.00868247,1990.5,1990.2,0.001]
[1772853431941,0.47622167,1990.8,1990.2,0.001]
[1772853432265,3.00844289,1990.7,1990.2,0.001]
[1772853432471,3.00844289,1990.6,1990.2,0.001]
[1772853432767,3.00844289,1990.5,1990.2,0.001]
[1772853432977,0.47622167,1990.7,1990.2,0.001]
[1772853433154,3.00832616,1990.6,1990.2,0.001]
[1772853433352,3.00832616,1990.5,1990.2,0.001]
[1772853433553,0.47622167,1990.7,1990.2,0.001]
[1772853433755,3.0081344,1990.6,1990.2,0.001]
[1772853434074,0.47622167,1990.7,1989.5,0.001]
[1772853434075,0.47622167,1990.3,1989.5,0.001]
[1772853434247,0.47622167,1990.1,1989.3,1.2566861]
[1772853434445,0.47622167,1989.9,1989.3,1.25668496]
[1772853434647,3.48435607,1989.8,1989.2,1.25774125]
[1772853434949,3.48435607,1989.7,1989.3,1.25671686]
[1772853435145,3.0081344,1989.6,1989.3,1.25671939]
[1772853435345,3.0081344,1989.5,1989.2,0.001]
[1772853436357,0.47622167,1989.6,1989.2,0.001]
[1772853436557,1.25647523,1989.7,1989.2,0.001]
[1772853436778,2.99655721,1989.6,1989.2,0.001]
[1772853436952,0.47622167,1989.6,1989.2,0.001]
[1772853438362,1.73276466,1989.6,1989.2,0.001]
[1772853438572,0.47622167,1989.6,1989.2,0.001]
[1772853438777,0.47622167,1989.5,1989.2,0.001]
[1772853438948,3.46771126,1989.4,1989.2,0.001]
[1772853439274,0.47622167,1989.4,1989.2,0.001]
[1772853440252,1.7329298,1989.4,1989.2,0.001]
[1772853440778,1.7329298,1989.4,1988.7,1.25710262]
[1772853441987,1.7329298,1989.4,1988.7,1.74643251]
[1772853442784,3.02209696,1989.3,1988.7,1.74643251]
[1772853443564,3.49831863,1989.3,1988.7,1.74643251]
[1772853445097,0.47622167,1989.2,1988.7,1.25710262]
[1772853445594,3.02209696,1989.3,1988.7,1.25710262]
[1772853446597,3.02209696,1989.3,1988.6,6.9377404]
[1772853446976,3.02209696,1989.3,1988.8,0.001]
[1772853447184,3.02409696,1989.3,1988.8,0.001]
[1772853450222,0.47622167,1989.2,1988.7,0.001]
[1772853450517,0.47622167,1989.2,1988.6,1.74647758]
[1772853450886,0.47622167,1989.2,1988.6,1.25714769]
[1772853451386,0.47622167,1989.1,1988.5,5.02966338]
[1772853453113,0.47622167,1989.1,1988.2,1.73172119]
[1772853453715,0.49814371,1988.9,1988.2,1.73172119]
[1772853454465,0.49814371,1988.9,1988.2,1.25737196]
[1772853454755,0.49814371,1988.9,1988.0,1.73186094]
[1772853455335,0.49814371,1988.9,1988.1,0.47434923]
[1772853455661,0.49814371,1989.0,1988.2,1.25741877]
[1772853457634,0.49814371,1989.0,1988.2,0.47434923]
[1772853457834,1.75506282,1989.0,1988.2,0.47434923]
[1772853458570,0.49814371,1989.0,1988.2,0.47434923]
[1772853458785,4.77896477,1989.3,1988.4,0.47434923]
[1772853458951,0.49814371,1989.2,1988.5,1.427]
[1772853459282,0.49814371,1989.2,1988.4,1.90134923]
[1772853459572,0.49814371,1989.2,1988.4,0.47434923]
[1772853459748,0.49814371,1989.1,1988.5,1.25722906]
[1772853460456,0.002,1988.9,1988.5,1.25722906]
[1772853462269,0.002,1988.9,1988.4,1.73159778]
[1772853462573,0.49814371,1988.8,1988.3,1.25835421]
[1772853463352,3.00402018,1988.7,1988.3,1.25835421]
[1772853463554,3.00402018,1988.6,1988.3,0.001]
[1772853463795,3.00402018,1988.6,1987.5,1.73216625]
[1772853463796,0.49814371,1988.3,1987.5,1.73216625]
[1772853463976,4.75958266,1988.2,1987.5,1.73216625]
[1772853464272,3.00402018,1988.1,1987.5,1.73216625]
[1772853464452,3.00402018,1988.0,1987.5,1.73216625]
[1772853464778,0.49814371,1988.2,1987.5,1.73216625]
[1772853464980,3.00373316,1988.1,1987.5,1.73216625]
[1772853465272,3.00373316,1988.0,1987.5,1.73216625]
[1772853465485,0.49814371,1988.2,1987.5,1.73216625]
[1772853465644,3.00199283,1988.1,1987.5,1.73216625]
[1772853466894,3.00199283,1988.1,1987.6,0.47434923]
[1772853467086,1.75547063,1988.4,1987.6,0.47434923]
[1772853467376,3.0004547,1988.3,1987.6,0.47434923]
[1772853468390,3.0004547,1988.3,1987.7,1.25773507]
[1772853468675,3.0004547,1988.3,1987.8,0.47434923]
[1772853468877,3.0004547,1988.2,1987.8,0.47434923]
[1772853469067,1.25729474,1988.4,1987.8,0.47434923]
[1772853469380,2.99887541,1988.3,1987.8,0.47434923]
[1772853469578,1.75540753,1988.5,1987.8,0.47434923]
[1772853469781,2.99809512,1988.4,1987.8,0.47434923]
[1772853469952,3.49623883,1988.4,1987.8,0.47434923]
[1772853470152,3.49623883,1988.3,1987.7,1.25773507]
[1772853470352,0.49814371,1988.3,1987.7,1.25773507]
[1772853471877,3.52577121,1988.6,1987.8,0.47434923]
[1772853472071,2.99725187,1988.5,1987.8,0.47434923]
[1772853472271,2.99725187,1988.4,1987.8,0.47434923]
[1772853472448,2.99725187,1988.3,1987.8,0.47434923]
[1772853472652,4.78294564,1988.6,1987.8,0.47434923]
[1772853472852,3.4952821,1988.5,1987.8,0.47434923]
[1772853473053,2.99713839,1988.4,1987.8,0.47434923]
[1772853473877,2.99713839,1988.4,1987.9,1.25760853]
[1772853474494,2.99713839,1988.4,1987.9,1.25860853]
[1772853474790,0.50014371,1988.3,1987.9,1.25860853]
[1772853474992,0.002,1988.3,1987.9,1.25860853]
[1772853475882,0.002,1988.3,1987.9,0.001]
[1772853477580,0.50014371,1988.3,1987.9,0.001]
[1772853477978,0.002,1988.3,1987.9,0.49675673]
[1772853479976,0.002,1988.3,1988.0,1.25754527]
[1772853481395,0.002,1988.3,1988.0,1.753302]
[1772853481896,3.00169183,1988.5,1988.2,0.45198066]
[1772853482097,0.64489297,1988.6,1988.3,1.25735552]
[1772853485182,0.64489297,1988.6,1988.4,0.45198066]
[1772853485497,0.64489297,1988.6,1988.4,3.8]
[1772853485703,0.64489297,1988.6,1988.4,4.25198066]
[1772853487099,0.64489297,1988.6,1988.5,1.25722906]
[1772853487807,0.64489297,1988.6,1988.4,5.05724131]
[1772853488707,0.64489297,1988.6,1988.4,5.05824131]
[1772853489087,0.002,1988.5,1988.4,5.05824131]
[1772853491205,0.002,1988.5,1988.4,5.05829229]
[1772853492407,0.002,1988.5,1988.4,1.25829229]
[1772853494309,0.49716579,1988.5,1988.4,0.001]
[1772853494609,3.50469295,1988.5,1988.4,0.001]
[1772853495007,0.0579212,1988.6,1988.5,0.45198066]
[1772853495311,0.002,1988.9,1988.5,0.45198066]
[1772853495610,0.49716579,1988.9,1988.5,0.45198066]
[1772853495905,1.75416267,1988.9,1988.4,3.801]
[1772853496114,0.49516579,1988.8,1988.4,3.801]
[1772853498020,0.49516579,1988.8,1988.5,1.25722906]
[1772853498400,0.49516579,1988.8,1988.5,5.05722906]
[1772853499098,0.49516579,1988.8,1988.5,3.8]
[1772853499898,0.002,1988.9,1988.5,5.05719743]
[1772853500219,0.49716579,1988.9,1988.5,5.05719743]
[1772853500514,0.49716579,1988.9,1988.5,3.8]
[1772853501123,0.49516579,1988.8,1988.1,0.001]
[1772853501327,0.49516579,1988.8,1988.2,0.05055605]
[1772853501897,0.49516579,1988.6,1988.2,0.05055605]
[1772853504121,1.75233163,1988.6,1988.5,0.001]
[1772853504301,0.49516579,1988.5,1988.1,0.001]
[1772853504492,0.49516579,1988.5,1988.3,0.001]
[1772853506019,1.75245808,1988.4,1988.3,0.001]
[1772853506415,0.49516579,1988.3,1988.1,0.001]
[1772853507128,0.49516579,1988.2,1987.5,0.45198066]
[1772853507425,0.49516579,1988.2,1987.3,1.70994469]
[1772853507597,0.49516579,1988.2,1987.3,1.70995765]
[1772853507994,0.49516579,1988.0,1987.4,0.45198066]
[1772853510108,1.75277432,1987.9,1987.4,0.45198066]
[1772853510309,0.49516579,1987.8,1987.4,0.45198066]
[1772853511917,0.49516579,1987.8,1987.2,0.46565469]
[1772853512146,1.73654773,1987.7,1987.2,0.46565469]
[1772853512341,1.73654773,1987.7,1987.2,1.72370508]
[1772853512856,1.73654773,1987.7,1987.2,1.72370339]
[1772853514244,6.62320962,1988.0,1987.2,1.72370339]
[1772853514245,0.47881266,1987.6,1987.2,1.72370339]
[1772853515830,0.47881266,1987.6,1987.3,0.001]
[1772853516228,1.73661441,1987.6,1987.3,0.001]
[1772853516437,0.47881266,1987.6,1987.3,0.001]
[1772853516644,1.593,1988.0,1987.4,0.46565469]
[1772853516845,2.85054589,1988.0,1987.4,0.46565469]
[1772853517447,1.593,1988.0,1987.4,0.46565469]
[1772853519450,1.593,1988.0,1987.5,1.25786163]
[1772853519639,1.593,1988.0,1987.5,1.72351632]
[1772853519840,2.07181266,1988.0,1987.5,1.72351632]
[1772853520152,1.73628146,1988.2,1987.6,0.46565469]
[1772853520357,0.47881266,1988.1,1987.6,0.46565469]
[1772853521755,1.73634465,1988.1,1987.6,1.72342461]
[1772853526762,0.47881266,1988.6,1987.9,0.46565469]
[1772853527541,1.2591329,1988.7,1987.9,0.46565469]
[1772853527738,0.002,1988.7,1987.9,0.46565469]
[1772853528980,0.002,1988.7,1988.0,1.25754527]
[1772853529263,0.002,1988.7,1988.2,0.46565469]
[1772853531764,0.002,1988.7,1988.4,0.46565469]
[1772853534853,1e-08,1988.9,1988.6,0.46565469]
[1772853537538,1e-08,1988.9,1988.6,1.7228141]
[1772853537975,1e-08,1988.9,1988.7,0.46052198]
[1772853539374,1e-08,1988.9,1988.8,0.46052198]
[1772853540544,1e-08,1988.9,1988.7,1.25704475]
[1772853541234,1e-08,1988.9,1988.7,0.46052198]
[1772853543057,1e-08,1988.9,1988.7,3.8]
[1772853543264,1e-08,1988.9,1988.7,5.05708492]
[1772853545578,0.16351653,1989.1,1988.7,1.75499915]
[1772853545762,0.16151653,1989.0,1988.4,1.75520652]
[1772853545944,0.16151653,1989.0,1988.5,0.49791423]
[1772853546145,0.002,1989.1,1988.5,0.49791423]
[1772853548290,1.25885104,1989.1,1988.6,1.25716584]
[1772853548496,1.25885104,1989.1,1988.7,0.49791423]
[1772853548665,0.002,1989.1,1988.7,0.49791423]
[1772853550195,0.16351653,1989.4,1988.9,0.49791423]
[1772853550196,0.002,1989.4,1988.9,0.49791423]
[1772853550572,0.16351653,1989.4,1988.9,0.49791423]
[1772853550772,0.16351653,1989.4,1988.7,1.75500037]
[1772853550975,0.16351653,1989.4,1988.8,0.49791423]
[1772853552292,1.41824,1989.3,1988.8,0.49791423]
[1772853552665,0.002,1989.0,1988.8,0.49791423]
[1772853552867,0.002,1989.0,1988.8,1.75495126]
[1772853553466,0.002,1989.0,1988.8,0.49791423]
[1772853553660,0.49056403,1988.9,1988.3,0.49891423]
[1772853553893,0.49056403,1988.9,1988.4,0.49791423]
[1772853554094,0.49056403,1988.9,1988.3,0.001]
[1772853554397,0.49056403,1988.7,1988.3,0.001]
[1772853556895,1.74772987,1988.6,1988.3,0.001]
[1772853557190,0.49056403,1988.5,1988.3,0.001]
[1772853558495,1.25697621,1988.9,1988.4,0.49791423]
[1772853558682,0.49056403,1988.8,1988.3,0.001]
[1772853558888,1.25710262,1988.7,1988.3,0.001]
[1772853559182,0.49056403,1988.6,1988.3,0.001]
[1772853561296,1.25722906,1988.5,1988.3,0.001]
[1772853563701,1.74779309,1988.5,1988.0,0.49891423]
[1772853564699,0.49056403,1988.5,1988.1,0.49791423]
[1772853565098,0.49056403,1988.5,1988.4,0.001]
[1772853565602,0.49256403,1988.5,1988.4,0.001]
[1772853565787,0.002,1988.5,1988.4,0.001]
[1772853571592,0.002,1988.5,1988.4,0.49891423]
[1772853576198,0.002,1988.5,1988.4,0.001]
[1772853576381,0.4537372,1988.5,1988.4,0.001]
[1772853576800,1.71096626,1988.5,1988.4,0.001]
[1772853581698,0.4537372,1988.5,1988.4,0.001]
[1772853582987,0.4537372,1988.5,1988.3,0.001]
[1772853582988,0.4537372,1988.5,1988.1,0.001]
[1772853583183,0.4517372,1988.4,1988.1,0.47374378]
[1772853583491,1.25922906,1988.5,1988.1,0.47374378]
[1772853584021,1.71096626,1988.5,1988.1,0.47374378]
[1772853586722,0.002,1988.5,1988.2,0.47274378]
[1772853587020,1.25923741,1988.5,1988.2,0.47274378]
[1772853587322,0.002,1988.5,1988.2,0.47274378]
[1772853589120,0.4537372,1988.5,1988.1,3.801]
[1772853589326,0.4537372,1988.5,1988.1,4.27374378]
[1772853591529,1.71102089,1988.5,1988.1,0.47374378]
[1772853592534,0.4517372,1988.4,1988.2,0.001]
[1772853592745,0.4537372,1988.4,1988.2,0.001]
[1772853592899,0.002,1988.4,1988.2,0.47374378]
[1772853594437,0.002,1988.6,1988.4,0.47274378]
[1772853594636,1.25917168,1988.6,1988.4,0.47274378]
[1772853595939,1.71090888,1988.6,1988.2,0.47374378]
[1772853596105,1.25917168,1988.6,1988.2,0.47374378]
[1772853596313,0.4517372,1988.5,1988.2,0.001]
[1772853598618,1.70900803,1988.5,1988.2,0.001]
[1772853600737,0.4517372,1988.5,1988.2,0.001]
[1772853600942,0.002,1988.6,1988.2,0.48415515]
[1772853601944,0.002,1988.6,1988.3,0.48398948]
[1772853603030,0.002,1988.6,1988.4,1.74128177]
[1772853603427,0.002,1988.8,1988.6,0.48398948]
[1772853605530,0.002,1988.8,1988.7,1.7410921]
[1772853605854,0.002,1989.1,1988.8,0.48398948]
[1772853607853,0.002,1989.1,1988.8,1.74101941]
[1772853608542,0.002,1989.1,1988.9,0.48398948]
[1772853608956,0.002,1989.4,1988.9,0.48398948]
[1772853609255,0.002,1989.4,1989.0,0.48398948]
[1772853609753,0.49224896,1989.2,1988.3,5.02928173]
[1772853610053,0.49224896,1989.0,1988.4,1.74127756]
[1772853611327,0.49224896,1989.0,1988.2,1.74236154]
[1772853612258,0.49224896,1988.8,1988.2,1.74236154]
[1772853614229,1.25710262,1988.7,1988.2,1.74236154]
[1772853615158,1.74935158,1988.7,1988.2,1.74236154]
[1772853615656,1.74935158,1988.7,1988.2,0.48498948]
[1772853615865,1.74935158,1988.7,1988.2,1.74239639]
[1772853616057,1.74935158,1988.7,1988.3,0.001]
[1772853616259,1.75135158,1988.7,1988.3,0.001]
[1772853617435,1.75135158,1988.7,1988.3,0.48498948]
[1772853619468,1.25910262,1988.7,1988.3,0.48498948]
[1772853619681,5.03016333,1988.8,1988.3,0.48498948]
[1772853619682,0.002,1988.8,1988.5,0.48398948]
[1772853620166,1.75129228,1988.8,1988.4,1.25729229]
[1772853620368,0.49224896,1988.4,1988.2,0.001]
[1772853620551,0.49224896,1988.7,1988.2,0.001]
[1772853620939,0.49224896,1988.5,1988.2,0.001]
[1772853623256,0.49224896,1988.3,1988.2,0.001]
[1772853624581,0.49224896,1988.3,1987.6,0.55235496]
[1772853624742,1.45798419,1988.3,1987.7,0.001]
[1772853624947,0.49224896,1988.2,1987.5,0.001]
[1772853625369,1.25748201,1988.1,1987.5,0.001]
[1772853625646,0.49224896,1988.0,1987.5,0.001]
[1772853626773,0.49224896,1988.0,1987.3,0.48498948]
[1772853626979,0.49224896,1988.0,1987.4,0.001]
[1772853627348,1.25760853,1987.9,1987.4,0.001]
[1772853627566,1.25760853,1987.9,1987.3,0.48498948]
[1772853627567,0.49224896,1987.8,1987.5,0.001]
[1772853627875,0.49224896,1987.8,1987.3,0.48498948]
[1772853627876,0.49224896,1987.8,1987.4,0.001]
[1772853628070,0.49224896,1987.8,1987.5,0.001]
[1772853629243,0.49224896,1987.8,1987.5,0.002]
[1772853629646,0.49224896,1987.6,1987.4,0.001]
[1772853629874,0.49224896,1987.6,1987.4,0.002]
[1772853630173,0.49224896,1987.6,1987.4,0.001]
[1772853631678,1.75011059,1987.5,1987.4,0.001]
[1772853631883,1.75011059,1987.5,1987.4,0.002]
[1772853633651,1.74348093,1987.7,1987.4,0.002]
[1772853633988,1.25777988,1987.7,1987.4,0.002]
[1772853634297,0.48570105,1987.6,1987.4,0.002]
[1772853636095,0.48570105,1987.5,1987.4,0.002]
[1772853638385,1.74356268,1987.5,1987.4,0.001]
[1772853638588,1.25786163,1987.5,1987.3,0.001]
[1772853638772,0.48570105,1987.4,1987.3,0.001]
[1772853639105,0.48570105,1987.4,1986.3,1.69744756]
[1772853639106,0.48570105,1987.3,1986.3,1.69744756]
[1772853639262,0.48570105,1986.7,1986.3,0.43887422]
[1772853639462,0.48570105,1986.7,1986.4,0.001]
[1772853639695,0.48570105,1986.7,1986.2,0.001]
[1772853640117,0.48570105,1986.7,1986.3,0.001]
[1772853640392,1.25843149,1986.6,1986.1,0.43887422]
[1772853640598,1.74381589,1987.1,1986.2,0.43887422]
[1772853640798,0.48570105,1987.0,1986.2,0.43887422]
[1772853643066,0.48570105,1987.0,1986.4,0.43887422]
[1772853643067,1.25824148,1986.9,1986.4,0.43887422]
[1772853647410,0.48570105,1986.9,1986.4,1.69737429]
[1772853648289,0.48570105,1986.9,1986.5,0.001]
[1772853648699,0.48570105,1986.9,1986.0,1.69765799]
[1772853649212,0.48570105,1986.7,1986.0,1.69765799]
[1772853649511,0.48570105,1986.7,1986.1,0.001]
[1772853649678,0.48570105,1986.7,1986.0,4.23887422]
[1772853650906,0.48570105,1986.7,1986.0,5.49768181]
[1772853651108,0.48570105,1986.7,1986.1,0.43987422]
[1772853652706,1.25843149,1986.6,1986.1,0.43987422]
[1772853652907,1.25843149,1986.6,1986.4,0.083083]
[1772853654313,1.74413254,1986.6,1986.4,0.083083]
[1772853654633,0.48570105,1986.5,1986.4,0.084083]
[1772853654808,1.74419589,1986.5,1986.4,0.084083]
[1772853655009,0.48570105,1986.4,1986.1,0.001]
[1772853656182,0.48570105,1986.4,1986.1,1.25972719]
[1772853656385,0.48570105,1986.8,1986.2,0.43887422]
[1772853657313,0.48570105,1986.6,1986.1,0.001]
[1772853658086,0.48570105,1986.6,1986.0,0.001]
[1772853658805,2.24167261,1986.5,1986.0,0.001]
[1772853659026,2.24167261,1986.5,1986.0,0.43987422]
[1772853659207,3.50018449,1986.5,1986.0,1.69862877]
[1772853661410,3.50018449,1986.5,1986.0,0.43987422]
[1772853662213,0.48820999,1986.4,1986.0,0.001]
[1772853662805,0.48820999,1986.4,1986.0,1.25980517]
[1772853663621,1.74677825,1986.4,1986.0,1.25980517]
[1772853664396,1.76464656,1986.5,1986.0,1.69867939]
[1772853664597,1.76464656,1986.5,1986.1,0.43887422]
[1772853666426,1.76464656,1986.5,1986.2,1.25868492]
[1772853667205,0.48820999,1986.4,1986.0,3.801]
[1772853667519,0.48820999,1986.3,1986.0,0.001]
[1772853668728,0.48820999,1986.1,1986.0,0.001]
[1772853669824,1.25868492,1986.2,1986.0,0.001]
[1772853672810,0.48820999,1986.1,1985.8,0.001]
[1772853673637,1.25881168,1986.0,1985.8,0.001]
[1772853674734,1.74702167,1986.0,1985.8,0.001]
[1772853678039,1.74702167,1986.0,1985.9,0.001]
[1772853688118,1.25881168,1986.0,1985.8,0.001]
[1772853688347,1.76664656,1986.4,1985.9,0.44087422]
[1772853690047,1.76664656,1986.4,1986.1,0.44087422]
[1772853692018,1.76664656,1986.4,1986.1,1.69958685]
[1772853692221,1.76664656,1986.4,1986.2,0.44087422]
[1772853692415,1.76664656,1986.4,1986.0,0.001]
[1772853692416,0.46738256,1986.3,1986.0,0.001]
[1772853695350,1.72606748,1986.2,1986.0,0.001]
[1772853695747,0.46738256,1986.2,1986.0,0.001]
[1772853696149,0.46738256,1985.8,1985.4,0.59960542]
[1772853696327,1.25892104,1985.9,1985.5,0.44087422]
[1772853696532,1.7263036,1985.9,1985.5,0.44087422]
[1772853697551,2.98522597,1985.9,1985.5,0.44087422]
[1772853699255,2.98522597,1985.9,1985.5,1.70000172]
[1772853701153,1.7263036,1985.9,1985.5,1.70000172]
[1772853702039,0.46738256,1985.9,1985.5,1.70000172]
[1772853702558,0.46738256,1985.9,1985.5,1.2591275]
[1772853702851,1.25886167,1986.0,1985.6,0.44087422]
[1772853703438,1.72624423,1986.0,1985.6,0.44087422]
[1772853703749,0.46738256,1986.0,1985.6,0.44087422]
[1772853704752,0.46738256,1986.0,1985.6,1.70090671]
[1772853704954,0.46738256,1986.0,1985.7,0.45064554]
[1772853705160,0.46738256,1986.1,1985.7,0.45064554]
[1772853709685,0.46738256,1986.1,1985.8,1.709584]
[1772853714869,0.002,1986.2,1985.9,0.4120653]
[1772853715240,0.002,1986.2,1985.9,1.67090661]
[1772853715639,0.46938256,1986.2,1985.9,1.67090661]
[1772853716457,0.002,1986.2,1986.0,0.4120653]
[1772853716771,0.002,1986.2,1985.9,1.67090661]
[1772853718040,0.002,1986.2,1985.9,1.67190661]
[1772853718242,0.002,1986.0,1985.9,1.67190661]
[1772853725884,0.002,1986.1,1986.0,0.4100653]
[1772853730412,0.48315654,1986.1,1985.9,5.05984131]
[1772853730611,0.48315654,1986.1,1985.9,5.05986196]
[1772853731401,0.48315654,1986.1,1985.9,5.05986698]
[1772853731697,0.002,1986.0,1985.9,5.05986698]
[1772853731882,0.48315654,1986.0,1985.9,3.801]
[1772853732599,0.48315654,1986.0,1985.9,0.001]
[1772853739430,0.002,1986.1,1985.9,0.4110653]
[1772853740512,0.48315654,1986.1,1985.9,0.001]
[1772853743641,1.74191076,1986.1,1985.9,0.001]
[1772853743924,1.74191076,1986.1,1986.0,0.001]
[1772853748841,0.48315654,1986.1,1986.0,0.001]
[1772853749244,1.74190484,1986.1,1986.0,0.001]
[1772853759369,0.002,1986.2,1986.1,0.41341478]
[1772853759522,0.45832163,1986.3,1986.0,0.001]
[1772853759721,0.45632163,1986.2,1986.0,0.001]
[1772853761931,1.71506993,1986.1,1986.0,0.001]
[1772853762956,0.45632163,1986.0,1985.7,0.001]
[1772853764051,1.71519669,1985.9,1985.7,0.001]
[1772853765148,1.71696752,1986.3,1985.8,0.41341478]
[1772853765944,0.45632163,1986.2,1985.8,0.41341478]
[1772853766134,1.71504561,1986.2,1985.8,0.41341478]
[1772853767653,1.71504561,1986.2,1985.9,0.001]
[1772853767854,0.002,1986.1,1985.9,0.001]
[1772853773767,0.002,1986.3,1985.9,0.001]
[1772853773954,0.54538864,1986.2,1985.9,0.001]
[1772853776067,0.54538864,1986.1,1985.9,0.001]
[1772853779234,1.80417511,1986.1,1985.9,0.001]
[1772853779867,0.54538864,1986.0,1985.9,0.001]
[1772853780870,0.54738864,1986.0,1985.9,0.001]
[1772853781968,1.80620032,1986.0,1985.9,0.001]
[1772853784243,0.54538864,1985.9,1985.4,1.4179057]
[1772853786740,1.80430942,1985.9,1985.4,1.4179057]
[1772853787145,1.26081218,1986.0,1985.4,1.4179057]
[1772853787575,0.54538864,1985.8,1985.4,3.9587312]
[1772853788474,0.9684365,1985.7,1984.9,1.25948544]
[1772853788771,0.54538864,1985.6,1984.9,5.05948544]
[1772853789075,1.80451732,1985.5,1984.9,5.05948544]
[1772853789466,0.54538864,1985.5,1984.9,5.05948544]
[1772853789665,0.54538864,1985.2,1984.5,1.25971312]
[1772853790979,1.80477103,1985.1,1984.5,1.25971312]
[1772853791470,1.80477103,1985.1,1984.4,3.21176582]
[1772853792358,0.54538864,1985.4,1985.0,0.001]
[1772853792761,0.49538864,1985.4,1985.0,0.001]
[1772853792974,1.77960495,1985.4,1985.0,0.001]
[1772853794184,0.52038864,1985.3,1985.0,0.001]
[1772853795258,1.77956577,1985.5,1985.0,0.001]
[1772853796367,0.52038864,1985.4,1985.0,0.001]
[1772853797585,5.55674603,1985.6,1985.0,0.001]
[1772853797954,0.52038864,1985.5,1985.0,0.001]
[1772853800378,1.77939561,1985.7,1985.0,0.001]
[1772853800756,0.52038864,1985.6,1985.0,0.001]
[1772853802887,1.77945612,1985.6,1985.0,0.001]
[1772853803099,0.52038864,1985.6,1985.0,0.001]
[1772853803592,1.78133724,1985.8,1985.0,0.001]
[1772853804555,1.2609486,1985.8,1985.0,0.001]
[1772853804757,0.52038864,1985.7,1985.0,0.001]
[1772853805387,0.52038864,1985.7,1985.1,0.001]
[1772853805576,0.52238864,1985.7,1985.1,0.001]
[1772853807497,0.002,1985.7,1985.1,0.001]
[1772853812372,0.002,1985.7,1985.2,3.8]
[1772853812886,0.002,1985.7,1985.3,5.05925552]
[1772853816702,0.002,1985.7,1985.4,3.8]
[1772853816883,0.002,1985.7,1985.5,3.8]
[1772853818878,0.002,1985.7,1985.6,5.05906526]
[1772853820180,0.52238864,1985.7,1985.6,3.8]
[1772853820894,0.52238864,1985.7,1985.6,5.05906526]
[1772853820895,0.002,1985.7,1985.6,5.05906526]
[1772853821213,1e-08,1985.9,1985.6,5.05906526]
[1772853822380,0.52038865,1985.9,1985.6,5.05906526]
[1772853827186,0.52038864,1985.8,1985.6,3.8]
[1772853827490,0.52038864,1985.8,1985.6,5.05905785]
[1772853830710,1e-08,1985.9,1985.6,5.05905785]
[1772853831687,1e-08,1985.9,1985.7,3.8]
[1772853831917,1e-08,1985.9,1985.7,3.801]
[1772853832218,0.002,1985.8,1985.7,3.801]
[1772853832421,0.002,1986.0,1985.7,3.801]
[1772853833584,0.002,1986.0,1985.8,1.25893846]
[1772853833794,0.002,1986.0,1985.9,1.465]
[1772853834019,0.52238864,1986.0,1985.8,6.52493846]
[1772853836023,0.52238864,1986.0,1985.8,3.8]
[1772853839501,0.52238864,1986.0,1985.7,3.801]
[1772853839898,0.52038864,1985.9,1985.7,3.801]
[1772853841603,0.52038864,1985.8,1985.7,3.59284455]
[1772853842105,0.52038864,1985.8,1985.5,0.001]
[1772853844414,0.4654439,1985.6,1985.5,0.001]
[1772853847126,1.72450916,1985.6,1985.5,0.001]
[1772853847328,0.4654439,1985.5,1985.4,0.001]
[1772853848537,0.4654439,1985.5,1985.3,0.001]
[1772853849139,0.4654439,1985.4,1985.3,0.001]
[1772853849641,0.4654439,1985.4,1985.0,0.16937816]
[1772853849642,1.25833531,1985.1,1985.0,1.428824]
[1772853849942,0.24567349,1985.1,1985.0,1.428824]
[1772853850144,0.4654439,1985.5,1985.1,0.16837816]
[1772853851115,0.4654439,1985.5,1985.2,1.25931896]
[1772853852114,0.4654439,1985.5,1985.2,1.42769712]
[1772853852379,0.4654439,1985.7,1985.3,0.16837816]
[1772853852510,0.4654439,1985.7,1985.2,1.42769712]
[1772853852710,0.4654439,1985.7,1985.2,1.25931896]
[1772853853348,0.4654439,1985.6,1985.2,1.42769712]
[1772853856841,0.4654439,1985.6,1985.4,0.001]
[1772853857042,0.4674439,1985.6,1985.4,0.001]
[1772853867169,0.002,1985.6,1985.4,1.42857026]
[1772853867402,0.002,1985.6,1985.4,0.16937816]
[1772853867941,0.002,1985.6,1985.4,0.001]
[1772853869879,0.48553234,1985.6,1985.4,0.001]
[1772853870042,0.002,1985.5,1985.4,0.001]
[1772853875059,0.002,1985.5,1985.4,0.16937816]